[Event "Titled Tuesday Blitz August 24 2021"]
[White "Damjanovic, Vladimir"]
[Black "Murzin, Volodar"]
[WhiteFideId "903795"]
[BlackFideId "44155573"]
[WhiteElo "2573"]
[BlackElo "2737"]
[Result "0-1"]
[Round "11"]
[TimeControl "180+1"]
[Date "2021.08.24"]
[WhiteClock "0:00:01"]
[BlackClock "0:00:04"]

1. e4 {[%clk 0:02:58]}  c6 {[%clk 0:03:00]} 2. Nf3 {[%clk 0:02:53]}  d5 {[%clk 0:03:00]} 3. d3 {[%clk 0:02:54]}  Qc7 {[%clk 0:02:59]} 4. Nc3 {[%clk 0:02:53]}  dxe4 {[%clk 0:02:50]} 5. dxe4 {[%clk 0:02:54]}  e5 {[%clk 0:02:51]} 6. Bc4 {[%clk 0:02:54]}  Be7 {[%clk 0:02:22]} 7. O-O {[%clk 0:02:52]}  Nd7 {[%clk 0:02:20]} 8. a4 {[%clk 0:02:41]}  Ngf6 {[%clk 0:02:12]} 9. Qe2 {[%clk 0:02:06]}  O-O {[%clk 0:02:08]} 10. Rd1 {[%clk 0:01:58]}  Nc5 {[%clk 0:02:02]} 11. h3 {[%clk 0:01:53]}  Ne6 {[%clk 0:01:54]} 12. Be3 {[%clk 0:01:47]}  b6 {[%clk 0:01:38]} 13. Kh2 {[%clk 0:00:46]}  Nd4 {[%clk 0:01:30]} 14. Qd2 {[%clk 0:00:25]}  Rd8 {[%clk 0:01:01]} 15. Qc1 {[%clk 0:00:25]}  Nxf3+ {[%clk 0:01:01]} 16. gxf3 {[%clk 0:00:26]}  Nh5 {[%clk 0:00:50]} 17. Rxd8+ {[%clk 0:00:20]}  Qxd8 {[%clk 0:00:48]} 18. Qd1 {[%clk 0:00:21]}  Qc7 {[%clk 0:00:27]} 19. Ne2 {[%clk 0:00:08]}  Bd7 {[%clk 0:00:12]} 20. Qg1 {[%clk 0:00:07]}  Rd8 {[%clk 0:00:10]} 21. Rd1 {[%clk 0:00:06]}  Bc8 {[%clk 0:00:09]} 22. b3 {[%clk 0:00:04]}  Rd6 {[%clk 0:00:07]} 23. Rxd6 {[%clk 0:00:03]}  Qxd6 {[%clk 0:00:07]} 24. Ng3 {[%clk 0:00:03]}  Nf4 {[%clk 0:00:04]} 25. Bxf4 {[%clk 0:00:01]}  exf4 {[%clk 0:00:05]} 26. Nh5 {[%clk 0:00:02]}  Qe5 {[%clk 0:00:05]} 27. Qd1 {[%clk 0:00:01]}  Qxh5 {[%clk 0:00:04]} 28. Qd2 {[%clk 0:00:02]}  Qxh3+ {[%clk 0:00:04]} 29. Kg1 {[%clk 0:00:02]}  Qd7 {[%clk 0:00:05]} 30. Qxf4 {[%clk 0:00:01]}  Bd8 {[%clk 0:00:04]} 31. e5 {[%clk 0:00:01]}  Bc7 {[%clk 0:00:04]} 32. Kg2 {[%clk 0:00:01]}  Qe7 {[%clk 0:00:05]} 33. Qe4 {[%clk 0:00:01]}  Bd7 {[%clk 0:00:04]} 0-1


[Site "https://www.chess.com"]

[Event "Titled Tuesday Blitz August 24 2021"]
[White "Djordjevic, Vuk"]
[Black "Jarovinsky, Alexey"]
[WhiteFideId "902098"]
[BlackFideId "14115131"]
[WhiteElo "2463"]
[BlackElo "2446"]
[Result "1/2-1/2"]
[Round "11"]
[TimeControl "180+1"]
[Date "2021.08.24"]
[WhiteClock "0:00:06"]
[BlackClock "0:00:02"]

1. d4 {[%clk 0:02:59]}  Nc6 {[%clk 0:03:00]} 2. Nf3 {[%clk 0:02:58]}  d6 {[%clk 0:03:00]} 3. c4 {[%clk 0:02:37]}  g6 {[%clk 0:03:00]} 4. Nc3 {[%clk 0:02:36]}  Bg7 {[%clk 0:02:59]} 5. Bg5 {[%clk 0:02:32]}  h6 {[%clk 0:02:59]} 6. Be3 {[%clk 0:02:30]}  Nf6 {[%clk 0:02:56]} 7. h3 {[%clk 0:02:30]}  O-O {[%clk 0:02:54]} 8. Qd2 {[%clk 0:02:30]}  Kh7 {[%clk 0:02:55]} 9. g4 {[%clk 0:02:29]}  d5 {[%clk 0:02:51]} 10. g5 {[%clk 0:02:21]}  Ne4 {[%clk 0:02:47]} 11. Nxe4 {[%clk 0:01:55]}  dxe4 {[%clk 0:02:48]} 12. gxh6 {[%clk 0:01:54]}  Bf6 {[%clk 0:02:44]} 13. Ng5+ {[%clk 0:01:48]}  Bxg5 {[%clk 0:02:43]} 14. Bxg5 {[%clk 0:01:48]}  Qxd4 {[%clk 0:02:41]} 15. Qxd4 {[%clk 0:01:32]}  Nxd4 {[%clk 0:02:41]} 16. Bxe7 {[%clk 0:01:14]}  Re8 {[%clk 0:02:39]} 17. O-O-O {[%clk 0:01:14]}  Rxe7 {[%clk 0:02:29]} 18. Rxd4 {[%clk 0:01:05]}  Bf5 {[%clk 0:02:28]} 19. h4 {[%clk 0:00:53]}  c5 {[%clk 0:02:25]} 20. Rd5 {[%clk 0:00:52]}  b6 {[%clk 0:02:24]} 21. h5 {[%clk 0:00:52]}  Kxh6 {[%clk 0:02:07]} 22. Bg2 {[%clk 0:00:26]}  Rae8 {[%clk 0:02:00]} 23. hxg6+ {[%clk 0:00:26]}  Kxg6 {[%clk 0:02:01]} 24. e3 {[%clk 0:00:23]}  Kf6 {[%clk 0:01:58]} 25. b3 {[%clk 0:00:21]}  Bg6 {[%clk 0:01:54]} 26. Rh4 {[%clk 0:00:19]}  Re5 {[%clk 0:01:49]} 27. Rf4+ {[%clk 0:00:19]}  Kg7 {[%clk 0:01:49]} 28. Rd7 {[%clk 0:00:18]}  R8e7 {[%clk 0:01:46]} 29. Rd1 {[%clk 0:00:15]}  Rg5 {[%clk 0:01:46]} 30. Bh3 {[%clk 0:00:16]}  Rh5 {[%clk 0:01:40]} 31. Bg4 {[%clk 0:00:16]}  Rh4 {[%clk 0:01:39]} 32. Rg1 {[%clk 0:00:16]}  Re5 {[%clk 0:01:34]} 33. Kd2 {[%clk 0:00:16]}  Rg5 {[%clk 0:01:33]} 34. Rg3 {[%clk 0:00:15]}  f5 {[%clk 0:01:15]} 35. Be2 {[%clk 0:00:07]}  Rxg3 {[%clk 0:01:08]} 36. Rxh4 {[%clk 0:00:07]}  Rg1 {[%clk 0:01:05]} 37. Bd1 {[%clk 0:00:07]}  a5 {[%clk 0:00:59]} 38. Rh2 {[%clk 0:00:06]}  Bf7 {[%clk 0:00:55]} 39. f3 {[%clk 0:00:05]}  exf3 {[%clk 0:00:41]} 40. Bxf3 {[%clk 0:00:06]}  Ra1 {[%clk 0:00:32]} 41. Kc3 {[%clk 0:00:06]}  Rc1+ {[%clk 0:00:29]} 42. Kb2 {[%clk 0:00:06]}  Rf1 {[%clk 0:00:28]} 43. Be2 {[%clk 0:00:06]}  Re1 {[%clk 0:00:28]} 44. Kc3 {[%clk 0:00:05]}  Kf6 {[%clk 0:00:28]} 45. Rf2 {[%clk 0:00:06]}  Ke5 {[%clk 0:00:26]} 46. Bd3 {[%clk 0:00:06]}  Be6 {[%clk 0:00:24]} 47. Kd2 {[%clk 0:00:05]}  Ra1 {[%clk 0:00:23]} 48. Kc3 {[%clk 0:00:05]}  Rd1 {[%clk 0:00:23]} 49. Bc2 {[%clk 0:00:05]}  Rh1 {[%clk 0:00:20]} 50. Rg2 {[%clk 0:00:05]}  Re1 {[%clk 0:00:19]} 51. Kd2 {[%clk 0:00:05]}  Ra1 {[%clk 0:00:18]} 52. a4 {[%clk 0:00:04]}  Rh1 {[%clk 0:00:17]} 53. Rg7 {[%clk 0:00:04]}  Rh2+ {[%clk 0:00:17]} 54. Kc3 {[%clk 0:00:05]}  Rh3 {[%clk 0:00:15]} 55. Kd2 {[%clk 0:00:05]}  Rh2+ {[%clk 0:00:14]} 56. Kc1 {[%clk 0:00:06]}  Rh1+ {[%clk 0:00:12]} 57. Bd1 {[%clk 0:00:05]}  Rh2 {[%clk 0:00:13]} 58. Rb7 {[%clk 0:00:04]}  f4 {[%clk 0:00:10]} 59. exf4+ {[%clk 0:00:04]}  Kd4 {[%clk 0:00:09]} 60. Rxb6 {[%clk 0:00:04]}  Bf5 {[%clk 0:00:09]} 61. Rf6 {[%clk 0:00:04]}  Bd3 {[%clk 0:00:08]} 62. Re6 {[%clk 0:00:04]}  Rh1 {[%clk 0:00:08]} 63. Kd2 {[%clk 0:00:04]}  Rh2+ {[%clk 0:00:08]} 64. Ke1 {[%clk 0:00:04]}  Kc3 {[%clk 0:00:08]} 65. Be2 {[%clk 0:00:04]}  Bxe2 {[%clk 0:00:06]} 66. Rxe2 {[%clk 0:00:05]}  Rh8 {[%clk 0:00:05]} 67. Re3+ {[%clk 0:00:05]}  Kd4 {[%clk 0:00:05]} 68. Rf3 {[%clk 0:00:05]}  Re8+ {[%clk 0:00:04]} 69. Kf2 {[%clk 0:00:05]}  Rf8 {[%clk 0:00:04]} 70. f5 {[%clk 0:00:06]}  Ke5 {[%clk 0:00:04]} 71. f6 {[%clk 0:00:07]}  Rxf6 {[%clk 0:00:04]} 72. Rxf6 {[%clk 0:00:07]}  Kxf6 {[%clk 0:00:04]} 73. Ke2 {[%clk 0:00:07]}  Ke6 {[%clk 0:00:05]} 74. Kd2 {[%clk 0:00:07]}  Kf6 {[%clk 0:00:05]} 75. Kd3 {[%clk 0:00:07]}  Kf5 {[%clk 0:00:05]} 76. Ke3 {[%clk 0:00:07]}  Ke5 {[%clk 0:00:05]} 77. Kd3 {[%clk 0:00:06]}  Kf4 {[%clk 0:00:05]} 78. Kd2 {[%clk 0:00:04]}  Ke4 {[%clk 0:00:04]} 79. Kc1 {[%clk 0:00:04]}  Kd3 {[%clk 0:00:04]} 80. Kb2 {[%clk 0:00:05]}  Kd4 {[%clk 0:00:04]} 81. Kc2 {[%clk 0:00:05]}  Ke4 {[%clk 0:00:04]} 82. Kd2 {[%clk 0:00:06]}  Kd4 {[%clk 0:00:04]} 83. Kc2 {[%clk 0:00:06]}  Ke4 {[%clk 0:00:04]} 84. Kc3 {[%clk 0:00:06]}  Ke3 {[%clk 0:00:04]} 85. Kb2 {[%clk 0:00:07]}  Kd4 {[%clk 0:00:02]} 86. Ka2 {[%clk 0:00:07]}  Ke4 {[%clk 0:00:02]} 87. Kb1 {[%clk 0:00:06]}  Kd4 {[%clk 0:00:02]} 88. Kc2 {[%clk 0:00:06]} 1/2-1/2


[Site "https://www.chess.com"]

[Event "Titled Tuesday Blitz August 24 2021"]
[White "FGHSMN"]
[Black "Timofeev, Artyom"]
[BlackFideId "4140419"]
[WhiteElo "2713"]
[BlackElo "2582"]
[Result "0-1"]
[Round "11"]
[TimeControl "180+1"]
[Date "2021.08.24"]
[WhiteClock "0:00:03"]
[BlackClock "0:00:34"]

1. e4 {[%clk 0:03:00]}  e6 {[%clk 0:02:59]} 2. Qe2 {[%clk 0:03:00]}  Nf6 {[%clk 0:02:56]} 3. d4 {[%clk 0:02:57]}  c5 {[%clk 0:02:54]} 4. d5 {[%clk 0:02:55]}  d6 {[%clk 0:02:46]} 5. c4 {[%clk 0:02:53]}  Be7 {[%clk 0:02:44]} 6. Nc3 {[%clk 0:02:53]}  O-O {[%clk 0:02:44]} 7. g3 {[%clk 0:02:53]}  exd5 {[%clk 0:02:42]} 8. cxd5 {[%clk 0:02:45]}  Re8 {[%clk 0:02:34]} 9. Bg2 {[%clk 0:02:44]}  b5 {[%clk 0:02:32]} 10. Nxb5 {[%clk 0:02:39]}  Bf8 {[%clk 0:02:28]} 11. Nc3 {[%clk 0:02:37]}  Ba6 {[%clk 0:02:28]} 12. Qc2 {[%clk 0:02:36]}  Qa5 {[%clk 0:02:24]} 13. Bd2 {[%clk 0:02:12]}  Nbd7 {[%clk 0:02:23]} 14. Nf3 {[%clk 0:02:10]}  Ng4 {[%clk 0:02:19]} 15. Bf1 {[%clk 0:02:03]}  Nde5 {[%clk 0:02:18]} 16. Nxe5 {[%clk 0:01:53]}  Nxe5 {[%clk 0:02:18]} 17. f4 {[%clk 0:01:43]}  Nf3+ {[%clk 0:02:05]} 18. Kf2 {[%clk 0:01:42]}  Nd4 {[%clk 0:02:05]} 19. Qa4 {[%clk 0:01:24]}  Qxa4 {[%clk 0:02:05]} 20. Nxa4 {[%clk 0:01:25]}  Bxf1 {[%clk 0:02:05]} 21. Rhxf1 {[%clk 0:01:26]}  Rxe4 {[%clk 0:02:05]} 22. Nc3 {[%clk 0:01:25]}  Ree8 {[%clk 0:02:04]} 23. Rfe1 {[%clk 0:01:23]}  f5 {[%clk 0:01:45]} 24. Rac1 {[%clk 0:01:03]}  Rxe1 {[%clk 0:01:41]} 25. Rxe1 {[%clk 0:01:01]}  Kf7 {[%clk 0:01:40]} 26. Rc1 {[%clk 0:00:52]}  g6 {[%clk 0:01:40]} 27. Ne2 {[%clk 0:00:47]}  Nb5 {[%clk 0:01:37]} 28. b3 {[%clk 0:00:44]}  Bg7 {[%clk 0:01:36]} 29. Ba5 {[%clk 0:00:38]}  Re8 {[%clk 0:01:33]} 30. Rc4 {[%clk 0:00:35]}  Bd4+ {[%clk 0:01:27]} 31. Nxd4 {[%clk 0:00:27]}  Nxd4 {[%clk 0:01:26]} 32. Bc7 {[%clk 0:00:27]}  Ke7 {[%clk 0:01:15]} 33. Ra4 {[%clk 0:00:13]}  Kd7 {[%clk 0:01:15]} 34. Ba5 {[%clk 0:00:10]}  Re2+ {[%clk 0:01:14]} 35. Kg1 {[%clk 0:00:07]}  Nf3+ {[%clk 0:00:56]} 36. Kf1 {[%clk 0:00:07]}  Rc2 {[%clk 0:00:55]} 37. h4 {[%clk 0:00:04]}  Kc8 {[%clk 0:00:54]} 38. Ra3 {[%clk 0:00:02]}  Kb7 {[%clk 0:00:51]} 39. Bd8 {[%clk 0:00:02]}  Nd2+ {[%clk 0:00:48]} 40. Ke1 {[%clk 0:00:02]}  Ne4 {[%clk 0:00:46]} 41. Be7 {[%clk 0:00:03]}  Rc3 {[%clk 0:00:43]} 42. g4 {[%clk 0:00:01]}  fxg4 {[%clk 0:00:38]} 43. h5 {[%clk 0:00:02]}  g3 {[%clk 0:00:36]} 44. f5 {[%clk 0:00:03]}  g2 {[%clk 0:00:34]} 0-1


[Site "https://www.chess.com"]

[Event "Titled Tuesday Blitz August 24 2021"]
[White "Filippova, Margarita"]
[Black "Kekelidze, Mikheil"]
[WhiteFideId "34199680"]
[BlackFideId "13600818"]
[WhiteElo "1829"]
[BlackElo "2387"]
[Result "0-1"]
[Round "11"]
[TimeControl "180+1"]
[Date "2021.08.24"]
[WhiteClock "0:00:47"]
[BlackClock "0:00:13"]

1. Nf3 {[%clk 0:03:00]}  d5 {[%clk 0:02:54]} 2. d4 {[%clk 0:03:01]}  Bf5 {[%clk 0:02:54]} 3. c4 {[%clk 0:03:01]}  e6 {[%clk 0:02:54]} 4. Nc3 {[%clk 0:03:02]}  c6 {[%clk 0:02:53]} 5. Qb3 {[%clk 0:03:02]}  Qb6 {[%clk 0:02:53]} 6. c5 {[%clk 0:03:03]}  Qc7 {[%clk 0:02:53]} 7. Bf4 {[%clk 0:03:02]}  Qc8 {[%clk 0:02:53]} 8. e3 {[%clk 0:03:02]}  h6 {[%clk 0:02:53]} 9. Qa4 {[%clk 0:03:02]}  Nd7 {[%clk 0:02:52]} 10. b4 {[%clk 0:03:01]}  Ngf6 {[%clk 0:02:44]} 11. b5 {[%clk 0:03:00]}  Bxc5 {[%clk 0:02:07]} 12. bxc6 {[%clk 0:02:50]}  bxc6 {[%clk 0:02:00]} 13. dxc5 {[%clk 0:02:48]}  Nxc5 {[%clk 0:02:00]} 14. Qd4 {[%clk 0:02:47]}  Ncd7 {[%clk 0:01:57]} 15. Qa4 {[%clk 0:02:42]}  O-O {[%clk 0:01:54]} 16. Ba6 {[%clk 0:02:38]}  Nc5 {[%clk 0:01:40]} 17. Bxc8 {[%clk 0:02:35]}  Nxa4 {[%clk 0:01:40]} 18. Nxa4 {[%clk 0:02:35]}  Rfxc8 {[%clk 0:01:38]} 19. Nc5 {[%clk 0:02:34]}  Ne4 {[%clk 0:01:36]} 20. Rc1 {[%clk 0:02:30]}  Nxc5 {[%clk 0:01:34]} 21. Rxc5 {[%clk 0:02:30]}  Be4 {[%clk 0:01:33]} 22. Nd4 {[%clk 0:02:25]}  Bxg2 {[%clk 0:01:26]} 23. Rg1 {[%clk 0:02:24]}  Be4 {[%clk 0:01:26]} 24. Nxc6 {[%clk 0:02:21]}  Kh7 {[%clk 0:01:25]} 25. Bd6 {[%clk 0:02:17]}  a5 {[%clk 0:01:19]} 26. Ke2 {[%clk 0:02:16]}  Ra6 {[%clk 0:01:17]} 27. Rgc1 {[%clk 0:02:16]}  f6 {[%clk 0:01:09]} 28. Nd4 {[%clk 0:02:11]}  Rxc5 {[%clk 0:01:07]} 29. Bxc5 {[%clk 0:02:11]}  e5 {[%clk 0:01:06]} 30. Nb5 {[%clk 0:02:08]}  Rc6 {[%clk 0:01:01]} 31. Ba3 {[%clk 0:02:02]}  Rb6 {[%clk 0:00:57]} 32. Nc7 {[%clk 0:01:58]}  d4 {[%clk 0:00:52]} 33. exd4 {[%clk 0:01:56]}  exd4 {[%clk 0:00:52]} 34. Ne8 {[%clk 0:01:44]}  Bb1 {[%clk 0:00:45]} 35. Rc7 {[%clk 0:01:41]}  Re6+ {[%clk 0:00:45]} 36. Kd2 {[%clk 0:01:39]}  Rxe8 {[%clk 0:00:45]} 37. Rd7 {[%clk 0:01:35]}  Bxa2 {[%clk 0:00:43]} 38. Rxd4 {[%clk 0:01:34]}  Bb3 {[%clk 0:00:42]} 39. Rd7 {[%clk 0:01:31]}  a4 {[%clk 0:00:41]} 40. Bb2 {[%clk 0:01:29]}  Kg6 {[%clk 0:00:42]} 41. Ba3 {[%clk 0:01:28]}  h5 {[%clk 0:00:38]} 42. Kd3 {[%clk 0:01:27]}  Be6 {[%clk 0:00:36]} 43. Rd4 {[%clk 0:01:23]}  Bf5+ {[%clk 0:00:34]} 44. Kd2 {[%clk 0:01:22]}  Ra8 {[%clk 0:00:34]} 45. h4 {[%clk 0:01:19]}  Be6 {[%clk 0:00:33]} 46. Rd6 {[%clk 0:01:15]}  Kf7 {[%clk 0:00:32]} 47. Rb6 {[%clk 0:01:14]}  Ra7 {[%clk 0:00:31]} 48. Bc5 {[%clk 0:01:11]}  Rd7+ {[%clk 0:00:28]} 49. Kc3 {[%clk 0:01:10]}  Bb3 {[%clk 0:00:27]} 50. Ba3 {[%clk 0:01:08]}  Rc7+ {[%clk 0:00:26]} 51. Kd4 {[%clk 0:01:06]}  Rc4+ {[%clk 0:00:25]} 52. Ke3 {[%clk 0:01:05]}  Rxh4 {[%clk 0:00:25]} 53. Rb7+ {[%clk 0:01:05]}  Kg8 {[%clk 0:00:25]} 54. Rb8+ {[%clk 0:01:04]}  Kh7 {[%clk 0:00:25]} 55. Rb7 {[%clk 0:01:04]}  Rg4 {[%clk 0:00:25]} 56. f3 {[%clk 0:01:04]}  Rg2 {[%clk 0:00:24]} 57. Rb5 {[%clk 0:01:01]}  Kg6 {[%clk 0:00:23]} 58. f4 {[%clk 0:00:54]}  h4 {[%clk 0:00:21]} 59. f5+ {[%clk 0:00:54]}  Kh5 {[%clk 0:00:21]} 60. Bf8 {[%clk 0:00:53]}  h3 {[%clk 0:00:20]} 61. Bd6 {[%clk 0:00:52]}  h2 {[%clk 0:00:19]} 62. Rb8 {[%clk 0:00:52]}  Kg4 {[%clk 0:00:14]} 63. Rh8 {[%clk 0:00:51]}  Kxf5 {[%clk 0:00:14]} 64. Bxh2 {[%clk 0:00:51]}  a3 {[%clk 0:00:14]} 65. Bd6 {[%clk 0:00:48]}  a2 {[%clk 0:00:14]} 66. Ra8 {[%clk 0:00:49]}  Rg1 {[%clk 0:00:14]} 67. Kf2 {[%clk 0:00:47]}  a1=Q {[%clk 0:00:13]} 0-1


[Site "https://www.chess.com"]

[Event "Titled Tuesday Blitz August 24 2021"]
[White "Gubajdullin, Alexei"]
[Black "Alboredo, Julia"]
[WhiteFideId "4141202"]
[BlackFideId "2124807"]
[WhiteElo "2358"]
[BlackElo "2041"]
[Result "1-0"]
[Round "11"]
[TimeControl "180+1"]
[Date "2021.08.24"]
[WhiteClock "0:00:08"]
[BlackClock "0:00:02"]

1. d4 {[%clk 0:02:57]}  Nf6 {[%clk 0:02:59]} 2. Bf4 {[%clk 0:02:55]}  d5 {[%clk 0:02:59]} 3. e3 {[%clk 0:02:55]}  c5 {[%clk 0:02:58]} 4. c3 {[%clk 0:02:55]}  Nc6 {[%clk 0:02:57]} 5. Nd2 {[%clk 0:02:55]}  Qb6 {[%clk 0:02:56]} 6. Qb3 {[%clk 0:02:54]}  c4 {[%clk 0:02:56]} 7. Qc2 {[%clk 0:02:55]}  g6 {[%clk 0:02:54]} 8. e4 {[%clk 0:02:55]}  Nxe4 {[%clk 0:02:50]} 9. Nxe4 {[%clk 0:02:54]}  dxe4 {[%clk 0:02:50]} 10. Bxc4 {[%clk 0:02:55]}  Bg7 {[%clk 0:02:45]} 11. Ne2 {[%clk 0:02:53]}  O-O {[%clk 0:02:42]} 12. Qxe4 {[%clk 0:02:50]}  Bf5 {[%clk 0:02:37]} 13. Qf3 {[%clk 0:02:46]}  Qxb2 {[%clk 0:02:35]} 14. O-O {[%clk 0:02:44]}  h5 {[%clk 0:02:29]} 15. Ng3 {[%clk 0:02:37]}  Bg4 {[%clk 0:02:27]} 16. Qe3 {[%clk 0:02:37]}  h4 {[%clk 0:02:25]} 17. Rfb1 {[%clk 0:02:34]}  Qa3 {[%clk 0:02:21]} 18. Ne4 {[%clk 0:02:29]}  Na5 {[%clk 0:02:10]} 19. Bd5 {[%clk 0:02:24]}  Rac8 {[%clk 0:02:03]} 20. Bxb7 {[%clk 0:01:47]}  Nxb7 {[%clk 0:02:00]} 21. Rxb7 {[%clk 0:01:47]}  e5 {[%clk 0:01:28]} 22. Bxe5 {[%clk 0:01:42]}  Bxe5 {[%clk 0:01:27]} 23. dxe5 {[%clk 0:01:41]}  Bf5 {[%clk 0:01:25]} 24. Nd6 {[%clk 0:01:12]}  Qxc3 {[%clk 0:01:19]} 25. Qxc3 {[%clk 0:01:10]}  Rxc3 {[%clk 0:01:20]} 26. Nxf5 {[%clk 0:01:06]}  gxf5 {[%clk 0:01:21]} 27. Rxa7 {[%clk 0:01:06]}  Re8 {[%clk 0:01:18]} 28. Ra4 {[%clk 0:01:00]}  h3 {[%clk 0:01:14]} 29. f4 {[%clk 0:00:43]}  hxg2 {[%clk 0:01:08]} 30. Kxg2 {[%clk 0:00:42]}  Rd8 {[%clk 0:01:07]} 31. Rf1 {[%clk 0:00:41]}  Kh7 {[%clk 0:00:56]} 32. Rf3 {[%clk 0:00:30]}  Rxf3 {[%clk 0:00:52]} 33. Kxf3 {[%clk 0:00:29]}  Rd2 {[%clk 0:00:53]} 34. Kg3 {[%clk 0:00:28]}  Kg6 {[%clk 0:00:44]} 35. Ra8 {[%clk 0:00:21]}  Rd3+ {[%clk 0:00:43]} 36. Kh4 {[%clk 0:00:19]}  Rf3 {[%clk 0:00:40]} 37. Ra6+ {[%clk 0:00:18]}  Kg7 {[%clk 0:00:37]} 38. Kg5 {[%clk 0:00:18]}  Rh3 {[%clk 0:00:34]} 39. Ra7 {[%clk 0:00:18]}  Kg8 {[%clk 0:00:28]} 40. Kf6 {[%clk 0:00:15]}  Rh6+ {[%clk 0:00:27]} 41. Kxf5 {[%clk 0:00:15]}  Rxh2 {[%clk 0:00:28]} 42. a4 {[%clk 0:00:15]}  Rh5+ {[%clk 0:00:23]} 43. Kg4 {[%clk 0:00:13]}  Rh1 {[%clk 0:00:21]} 44. a5 {[%clk 0:00:13]}  Ra1 {[%clk 0:00:20]} 45. a6 {[%clk 0:00:12]}  Ra4 {[%clk 0:00:17]} 46. Kg5 {[%clk 0:00:12]}  Ra5 {[%clk 0:00:15]} 47. Kf6 {[%clk 0:00:11]}  Ra4 {[%clk 0:00:15]} 48. f5 {[%clk 0:00:11]}  Rf4 {[%clk 0:00:12]} 49. Ra8+ {[%clk 0:00:11]}  Kh7 {[%clk 0:00:12]} 50. a7 {[%clk 0:00:11]}  Ra4 {[%clk 0:00:09]} 51. Kxf7 {[%clk 0:00:11]}  Ra6 {[%clk 0:00:06]} 52. e6 {[%clk 0:00:10]}  Kh6 {[%clk 0:00:04]} 53. f6 {[%clk 0:00:09]}  Kh7 {[%clk 0:00:02]} 54. e7 {[%clk 0:00:08]} 1-0


[Site "https://www.chess.com"]

[Event "Titled Tuesday Blitz August 24 2021"]
[White "Gubanov, Oleg"]
[Black "Dobrowolski, Piotr"]
[WhiteFideId "14115115"]
[BlackFideId "1106236"]
[WhiteElo "2138"]
[BlackElo "2296"]
[Result "0-1"]
[Round "11"]
[TimeControl "180+1"]
[Date "2021.08.24"]
[WhiteClock "0:00:39"]
[BlackClock "0:00:58"]

1. e4 {[%clk 0:03:00]}  e6 {[%clk 0:02:58]} 2. d4 {[%clk 0:03:00]}  d5 {[%clk 0:02:59]} 3. Nc3 {[%clk 0:02:59]}  Nf6 {[%clk 0:02:59]} 4. Bg5 {[%clk 0:02:57]}  Be7 {[%clk 0:02:57]} 5. Bxf6 {[%clk 0:02:54]}  Bxf6 {[%clk 0:02:57]} 6. Nf3 {[%clk 0:02:54]}  O-O {[%clk 0:02:55]} 7. Bd3 {[%clk 0:02:46]}  b6 {[%clk 0:02:46]} 8. O-O {[%clk 0:02:41]}  Bb7 {[%clk 0:02:41]} 9. Re1 {[%clk 0:02:41]}  Nd7 {[%clk 0:02:34]} 10. exd5 {[%clk 0:02:28]}  exd5 {[%clk 0:02:34]} 11. Ne2 {[%clk 0:02:27]}  c5 {[%clk 0:02:32]} 12. c3 {[%clk 0:02:27]}  Qc7 {[%clk 0:02:27]} 13. Rc1 {[%clk 0:02:24]}  c4 {[%clk 0:02:16]} 14. Bb1 {[%clk 0:02:24]}  b5 {[%clk 0:02:17]} 15. Ng3 {[%clk 0:02:13]}  g6 {[%clk 0:02:12]} 16. h4 {[%clk 0:02:13]}  Rfe8 {[%clk 0:02:05]} 17. Qc2 {[%clk 0:02:08]}  Nf8 {[%clk 0:02:00]} 18. h5 {[%clk 0:02:06]}  Qf4 {[%clk 0:01:52]} 19. hxg6 {[%clk 0:02:03]}  hxg6 {[%clk 0:01:51]} 20. Ne2 {[%clk 0:01:23]}  Qg4 {[%clk 0:01:50]} 21. Ne5 {[%clk 0:01:16]}  Bxe5 {[%clk 0:01:48]} 22. dxe5 {[%clk 0:01:16]}  Rxe5 {[%clk 0:01:46]} 23. Nd4 {[%clk 0:01:16]}  Rae8 {[%clk 0:01:44]} 24. Rxe5 {[%clk 0:01:15]}  Rxe5 {[%clk 0:01:44]} 25. f3 {[%clk 0:01:14]}  Qd7 {[%clk 0:01:39]} 26. Qf2 {[%clk 0:01:05]}  Ne6 {[%clk 0:01:35]} 27. Nxe6 {[%clk 0:01:00]}  Qxe6 {[%clk 0:01:30]} 28. Qxa7 {[%clk 0:00:59]}  Re1+ {[%clk 0:01:14]} 29. Rxe1 {[%clk 0:00:59]}  Qxe1+ {[%clk 0:01:14]} 30. Kh2 {[%clk 0:01:00]}  Qh4+ {[%clk 0:01:13]} 31. Kg1 {[%clk 0:01:00]}  Qe1+ {[%clk 0:01:13]} 32. Kh2 {[%clk 0:01:00]}  Qxb1 {[%clk 0:01:14]} 33. Qxb7 {[%clk 0:00:57]}  Qxb2 {[%clk 0:01:14]} 34. Qxd5 {[%clk 0:00:55]}  Qxc3 {[%clk 0:01:14]} 35. Qxb5 {[%clk 0:00:56]}  Qd4 {[%clk 0:01:11]} 36. a4 {[%clk 0:00:51]}  c3 {[%clk 0:01:10]} 37. a5 {[%clk 0:00:40]}  c2 {[%clk 0:00:58]} 38. Qc6 {[%clk 0:00:40]}  Qf4+ {[%clk 0:00:58]} 39. g3 {[%clk 0:00:39]}  Qd2+ {[%clk 0:00:57]} 40. Kh3 {[%clk 0:00:39]}  c1=Q {[%clk 0:00:58]} 0-1


[Site "https://www.chess.com"]

[Event "Titled Tuesday Blitz August 24 2021"]
[White "Gurevich, Dmitry"]
[Black "Materia, Marco"]
[WhiteFideId "2000407"]
[BlackFideId "45150451"]
[WhiteElo "2506"]
[BlackElo "2689"]
[Result "0-1"]
[Round "11"]
[TimeControl "180+1"]
[Date "2021.08.24"]
[WhiteClock "0:00:01"]
[BlackClock "0:01:27"]

1. d4 {[%clk 0:03:00]}  Nf6 {[%clk 0:02:59]} 2. c4 {[%clk 0:03:00]}  e6 {[%clk 0:03:00]} 3. g3 {[%clk 0:02:59]}  d5 {[%clk 0:02:58]} 4. Bg2 {[%clk 0:02:58]}  Bb4+ {[%clk 0:02:58]} 5. Nd2 {[%clk 0:02:57]}  O-O {[%clk 0:02:57]} 6. Nf3 {[%clk 0:02:56]}  dxc4 {[%clk 0:02:54]} 7. Qc2 {[%clk 0:02:53]}  a5 {[%clk 0:02:38]} 8. O-O {[%clk 0:02:50]}  b5 {[%clk 0:02:38]} 9. Ne5 {[%clk 0:02:21]}  Ra6 {[%clk 0:02:33]} 10. Rd1 {[%clk 0:02:14]}  Rb6 {[%clk 0:02:17]} 11. Ne4 {[%clk 0:02:05]}  Bb7 {[%clk 0:02:17]} 12. Bg5 {[%clk 0:01:59]}  Bxe4 {[%clk 0:02:15]} 13. Bxe4 {[%clk 0:01:56]}  h6 {[%clk 0:02:15]} 14. Bxf6 {[%clk 0:01:24]}  gxf6 {[%clk 0:02:01]} 15. Bh7+ {[%clk 0:01:04]}  Kh8 {[%clk 0:01:49]} 16. Nf3 {[%clk 0:00:46]}  f5 {[%clk 0:01:49]} 17. d5 {[%clk 0:00:44]}  Kxh7 {[%clk 0:01:45]} 18. dxe6 {[%clk 0:00:43]}  Qf6 {[%clk 0:01:45]} 19. exf7 {[%clk 0:00:39]}  Rxf7 {[%clk 0:01:44]} 20. Rd5 {[%clk 0:00:39]}  c6 {[%clk 0:01:42]} 21. Rdd1 {[%clk 0:00:32]}  Nd7 {[%clk 0:01:41]} 22. a3 {[%clk 0:00:26]}  Bf8 {[%clk 0:01:40]} 23. Rd4 {[%clk 0:00:22]}  Ne5 {[%clk 0:01:37]} 24. Nh4 {[%clk 0:00:18]}  Nd3 {[%clk 0:01:31]} 25. exd3 {[%clk 0:00:03]}  Qxd4 {[%clk 0:01:31]} 26. dxc4 {[%clk 0:00:02]}  Qxc4 {[%clk 0:01:31]} 27. Qd2 {[%clk 0:00:02]}  Bg7 {[%clk 0:01:30]} 28. Re1 {[%clk 0:00:01]}  c5 {[%clk 0:01:27]} 0-1


[Site "https://www.chess.com"]